bitfinex-derivatives/quotes_ETHF0:USTF0_20250410
["timestamp","ask_amount","ask_price","bid_price","bid_amount"]
[1744326763030,1.57794122,1522.6,1522.4,8.4026]
[1744326763233,2.90309,1522.5,1522.4,7.7458]
[1744326763432,3.2884,1522.5,1522.4,9.06027]
[1744326764435,0.00984122,1522.6,1522.5,1.31439]
[1744326764736,0.00984122,1522.6,1522.5,3.86529]
[1744326765033,1.32414122,1522.6,1522.5,3.86529]
[1744326765336,1.32414122,1522.6,1522.5,2.14279]
[1744326765539,2.14714122,1522.6,1522.5,2.14279]
[1744326765930,0.83284122,1522.6,1522.5,2.14279]
[1744326766238,2.14714122,1522.6,1522.5,2.14279]
[1744326766536,3.82314122,1522.6,1522.5,2.14279]
[1744326767237,3.82314122,1522.6,1522.5,1.31439]
[1744326768039,3.82314122,1522.6,1522.3,11.02627122]
[1744326768040,7.50884122,1522.6,1522.3,0.00984122]
[1744326768231,1.31447,1522.4,1522.3,1.22e-06]
[1744326768631,7.89587,1522.4,1522.3,1.22e-06]
[1744326771137,1.31482,1522.0,1521.9,8.79158513]
[1744326771341,4.52262,1522.0,1521.9,7.04742513]
[1744326771539,9.52262,1522.0,1521.9,7.04742513]
[1744326771741,11.14572,1522.0,1521.9,7.04742513]
[1744326772246,11.14572,1522.0,1521.9,4.18829513]
[1744326772431,1.3149,1521.9,1521.8,5.2269462]
[1744326772634,3.28737,1521.9,1521.5,24.62830294]
[1744326772831,4.52296,1521.6,1521.5,24.62830294]
[1744326773836,4.52296,1521.6,1521.1,1.7126]
[1744326773837,1.31551,1521.2,1521.1,1.7126]
[1744326774044,1.31551,1521.2,1521.1,10.0]
[1744326774239,3.2078,1521.2,1521.1,6.57040734]
[1744326774544,1.31549,1521.3,1521.1,6.57040734]
[1744326774848,1.31537,1521.4,1521.2,9.61659734]
[1744326775148,1.31537,1521.4,1521.3,1.7307]
[1744326775344,1.31537,1521.4,1521.3,8.30110734]
[1744326775550,6.50551122,1521.7,1521.3,8.30110734]
[1744326775751,1.31525,1521.5,1521.4,8.30110734]
[1744326775952,1.31525,1521.5,1521.4,1.7307]
[1744326776245,1.6374,1521.6,1521.4,8.30110734]
[1744326776446,0.00984122,1521.7,1521.5,6.57040734]
[1744326776651,0.00984122,1521.7,1521.6,1.31516]
[1744326776853,1.32492122,1521.7,1521.6,9.08990734]
[1744326777056,0.00984122,1521.7,1521.6,10.40506734]
[1744326777847,0.00984122,1521.7,1521.6,20.40506734]
[1744326778045,0.00984122,1521.7,1521.6,10.40506734]
[1744326778654,0.00984122,1521.7,1521.6,20.40506734]
[1744326779050,0.00984122,1521.7,1521.6,19.08990734]
[1744326779356,1.32492122,1521.7,1521.6,19.08990734]
[1744326779853,4.89791122,1521.7,1521.2,7.7858]
[1744326780055,1.31542,1521.3,1521.2,16.88020734]
[1744326780259,1.31542,1521.3,1521.2,15.4124]
[1744326780445,1.6003,1521.5,1521.2,21.98280734]
[1744326780757,1.31534,1521.4,1521.3,6.57040734]
[1744326781756,4.88846,1521.5,1521.1,0.8093]
[1744326782058,1.3156,1521.1,1521.0,7.7858]
[1744326782271,1.3156,1521.1,1521.0,17.7858]
[1744326782556,1.3156,1521.1,1521.0,24.35620734]
[1744326783155,1.3156,1521.1,1521.0,6.57040734]
[1744326783558,3.0365,1521.1,1521.0,6.57040734]
[1744326783748,6.7209,1521.1,1520.6,3.2078]
[1744326783950,1.31586,1520.8,1520.7,6.57040734]
[1744326784349,1.73074122,1520.9,1520.7,7.88627734]
[1744326784555,0.00984122,1520.9,1520.8,6.57040734]
[1744326784756,1.32564122,1520.9,1520.8,6.57040734]
[1744326784956,0.00984122,1520.9,1520.8,7.88626734]
[1744326785263,0.00984122,1520.9,1520.5,1.31611]
[1744326785459,1.31597,1520.7,1520.6,6.57040734]
[1744326785754,1.31589,1520.8,1520.6,7.88641734]
[1744326785961,1.31589,1520.8,1520.7,6.57040734]
[1744326786659,1.31589,1520.8,1520.7,16.57040734]
[1744326787859,1.32566122,1520.9,1520.7,17.88634734]
[1744326788061,1.32566122,1520.9,1520.8,6.57040734]
[1744326788457,0.00984122,1520.9,1520.8,6.57040734]
[1744326788759,0.00984122,1520.9,1520.8,7.88626734]
[1744326788959,1.31544,1521.3,1521.1,1.31555]
[1744326789150,3.2078,1521.4,1521.1,4.619]
[1744326789458,3.2078,1521.4,1521.3,2.83387631]
[1744326789656,3.2078,1521.4,1521.3,1.31542]
[1744326789964,11.49358701,1521.5,1521.3,1.51845631]
[1744326790150,11.50342823,1521.5,1521.4,1.51845631]
[1744326790461,10.18815823,1521.5,1521.4,7.45279631]
[1744326790658,10.18815823,1521.5,1521.4,17.45279631]
[1744326791561,0.00984122,1521.5,1521.4,17.45279631]
[1744326791862,0.00984122,1521.5,1521.4,15.66059631]
[1744326792054,3.2078,1521.9,1521.7,1.31508]
[1744326792256,1.3149,1521.9,1521.7,1.31508]
[1744326792560,1.3152,1521.6,1521.4,7.8268]
[1744326792755,1.3152,1521.6,1521.5,1.51845631]
[1744326792955,3.2078,1521.9,1521.5,1.51845631]
[1744326793160,1.32492122,1521.7,1521.6,1.51845631]
[1744326793657,0.00984122,1521.7,1521.6,6.04141631]
[1744326794061,0.00984122,1521.7,1521.6,2.83361631]
[1744326794462,1.32492122,1521.7,1521.6,10.20344631]
[1744326795165,0.00984122,1521.7,1521.6,14.72640631]
[1744326795367,1.32492122,1521.7,1521.6,1.51845631]
[1744326796362,1.31516,1521.6,1521.5,5.4306]
[1744326796565,1.31516,1521.6,1521.5,6.74585]
[1744326796765,1.31516,1521.6,1521.5,8.26430631]
[1744326796967,1.32496122,1521.7,1521.5,8.26430631]
[1744326797170,1.32497122,1521.7,1521.6,1.51845631]
[1744326797369,0.00984122,1521.7,1521.6,2.83361631]
[1744326797665,0.00984122,1521.7,1521.6,4.47751631]
[1744326798175,0.00984122,1521.7,1521.6,11.84734631]
[1744326798360,1.32492122,1521.7,1521.6,3.16235631]
[1744326798666,0.00984122,1521.7,1521.6,4.47751631]
[1744326799762,0.00984122,1521.7,1521.6,13.16250631]
[1744326801564,0.00984122,1521.7,1521.6,4.47751631]
[1744326802572,0.00984122,1521.7,1521.6,13.16250631]
[1744326804868,1.32492122,1521.7,1521.6,3.16235631]
[1744326805974,3.03462122,1521.7,1521.6,3.16235631]
[1744326807174,1.32492122,1521.7,1521.6,3.16235631]
[1744326808074,1.32492122,1521.7,1521.6,4.47751631]
[1744326808374,1.32492122,1521.7,1521.6,3.16235631]
[1744326809068,2.94872122,1521.7,1521.6,3.16235631]
[1744326810871,0.00984122,1521.7,1521.6,4.47751631]
[1744326811473,1.32492122,1521.7,1521.6,3.16235631]
[1744326812065,1.31516,1521.6,1521.5,5.992]
[1744326812264,1.32499122,1521.7,1521.5,7.51045631]
[1744326812470,3.02689122,1521.7,1521.6,1.51845631]
[1744326812674,3.02689122,1521.7,1521.6,3.22515631]
[1744326815186,0.00984122,1521.7,1521.6,4.54031631]
[1744326815563,0.00984122,1521.7,1521.6,9.19631631]
[1744326816078,0.99625684,1521.7,1521.6,9.19631631]
[1744326816278,0.99625684,1521.7,1521.6,5.97116]
[1744326816576,0.99625684,1521.7,1521.6,14.65615]
[1744326818075,0.00984122,1521.7,1521.6,14.65615]
[1744326819677,0.00984122,1521.7,1521.6,15.55235]
[1744326820475,0.00984122,1521.7,1521.6,10.07516]
[1744326820878,0.00984122,1521.7,1521.6,11.69476]
[1744326821079,0.00984122,1521.7,1521.6,20.37975]
[1744326822277,0.00984122,1521.7,1521.6,21.27795]
[1744326825579,0.00984122,1521.7,1521.6,12.59296]
[1744326825779,4.0794,1522.1,1521.6,12.59296]
[1744326825780,2.15704584,1522.1,1522.0,1.31482]
[1744326826077,2.15704584,1522.1,1522.0,9.17862]
[1744326826875,2.15704584,1522.1,1522.0,11.61822]
[1744326827378,0.80854584,1522.1,1522.0,22.61022]
[1744326829181,0.80854584,1522.1,1522.0,17.61022]
[1744326829676,2.12327584,1522.1,1522.0,8.4316]
[1744326829877,3.72310584,1522.1,1521.9,1.31483]
[1744326830078,3.72310584,1522.1,1521.9,2.92053]
[1744326830277,0.80854584,1522.1,1522.0,4.52262]
[1744326830478,0.80854584,1522.1,1522.0,6.99932]
[1744326830683,1.31473,1522.1,1522.0,6.99932]
[1744326831285,1.31473,1522.1,1522.0,5.6845]
[1744326833088,1.31473,1522.1,1522.0,6.99932]
[1744326833483,1.31473,1522.1,1522.0,5.6845]
[1744326833678,1.31473,1522.1,1522.0,6.99932]
[1744326833980,2.92433122,1522.2,1522.1,1.31473]
[1744326834283,2.92428122,1522.2,1522.1,6.2612]
[1744326834885,2.92428122,1522.2,1522.1,1.6062]
[1744326837378,2.92428122,1522.2,1522.0,4.0788]
[1744326837379,1.31473,1522.1,1522.0,4.0788]
[1744326837577,3.02293,1522.1,1522.0,5.6936]
[1744326837781,12.48890202,1522.2,1522.0,5.6936]
[1744326837983,14.08380202,1522.2,1522.1,1.6725]
[1744326839588,14.08380202,1522.2,1522.1,2.98723]
[1744326839887,12.76914202,1522.2,1522.1,2.98723]
[1744326840286,11.17424202,1522.2,1522.1,2.98723]
[1744326840484,11.17424202,1522.2,1522.1,3.84433]
[1744326841189,0.99592501,1522.2,1522.1,3.84433]
[1744326841489,0.99592501,1522.2,1522.1,8.84433]
[1744326841692,0.99592501,1522.2,1522.1,14.83633]
[1744326842781,0.99592501,1522.2,1522.1,9.83633]
[1744326844886,0.00984122,1522.2,1522.1,9.83633]
[1744326849890,10.17831701,1522.6,1522.5,1.31439]
[1744326850192,10.17831701,1522.6,1522.5,15.10019]
[1744326850990,2.11680202,1522.6,1522.5,30.31934976]
[1744326851193,10.33294401,1522.8,1522.7,1.31421]
[1744326851386,10.33294401,1522.8,1522.7,4.52201]
[1744326851587,10.33294401,1522.8,1522.7,24.88966976]
[1744326852093,10.40541734,1523.1,1523.0,1.31395]
[1744326852297,10.40541734,1523.1,1523.0,15.09975]
[1744326852895,10.40541734,1523.1,1523.0,15.75655]
[1744326853090,10.40541734,1523.1,1523.0,17.50335]
[1744326853890,10.40541734,1523.1,1523.0,22.50335]
[1744326854092,7.20712734,1523.1,1523.0,123.34315]
[1744326854288,3.56876734,1523.1,1523.0,131.83728513]
[1744326854591,0.00984122,1523.2,1523.1,1.31387]
[1744326854788,0.00984122,1523.2,1523.1,2.93227]
[1744326854985,0.00984122,1523.2,1523.1,7.51727]
[1744326856295,1.31387,1523.1,1523.0,3.2078]
[1744326856686,3.00847,1523.1,1523.0,7.7928]
[1744326857196,8.00847,1523.1,1523.0,7.7928]
[1744326859298,3.00847,1523.1,1523.0,7.7928]
[1744326860488,3.00847,1523.1,1523.0,9.10675]
[1744326860797,1.6946,1523.1,1523.0,9.10675]
[1744326861192,0.00984122,1523.2,1523.1,1.31387]
[1744326861495,0.00984122,1523.2,1523.1,2.97597]
[1744326861989,1.66074122,1523.2,1523.1,2.97597]
[1744326864098,0.00984122,1523.2,1523.1,2.97597]
[1744326864300,0.00984122,1523.2,1523.1,8.96797]
[1744326864891,0.00984122,1523.2,1523.1,13.96797]
[1744326865091,0.00984122,1523.2,1523.1,22.62099665]
[1744326865390,1.22e-06,1523.2,1523.1,22.62099665]
[1744326866191,3.04062,1523.9,1523.5,3.2838]
[1744326866387,3.04062,1523.9,1523.8,3.2078]
[1744326867193,1.31335,1523.7,1523.6,4.583]
[1744326867802,3.04075,1523.7,1523.6,7.7908]
[1744326868696,1.31344,1523.6,1523.5,6.00184122]
[1744326868900,3.77024,1523.6,1523.5,0.00984122]
[1744326869202,8.77024,1523.6,1523.5,0.00984122]
[1744326872906,8.77024,1523.6,1523.5,1.22e-06]
[1744326874801,13.47624,1523.6,1523.5,1.22e-06]
[1744326877011,18.5649092,1523.6,1523.5,1.22e-06]
[1744326877212,1.31387,1523.1,1523.0,3.2078]
[1744326878208,3.04797,1523.1,1523.0,3.2078]
[1744326879505,1.31395,1523.0,1522.9,0.00984122]
[1744326879715,6.25585,1523.0,1522.9,1.22e-06]
[1744326880807,3.04805,1523.0,1522.9,1.22e-06]
[1744326882908,1.7341,1523.0,1522.9,1.22e-06]
[1744326883108,1.7341,1523.0,1522.9,1.70750122]
[1744326883407,1.31395,1523.0,1522.9,6.41450122]
[1744326884812,1.31395,1523.0,1522.9,7.72854122]
[1744326885215,1.31395,1523.0,1522.9,6.41450122]
[1744326885715,6.69916191,1523.1,1522.9,6.41450122]
[1744326886013,1.31395,1523.0,1522.9,6.02100122]
[1744326886211,1.31395,1523.0,1522.9,4.70700122]
[1744326887121,3.01455,1523.0,1522.9,4.70700122]
[1744326888716,6.22235,1523.0,1522.9,1.22e-06]
[1744326889218,3.01455,1523.0,1522.9,1.22e-06]
[1744326891818,8.10721191,1523.0,1522.9,1.22e-06]
[1744326892719,6.40661191,1523.0,1522.9,1.22e-06]
[1744326893020,6.40661191,1523.0,1522.9,0.81760122]
[1744326893317,5.09266191,1523.0,1522.9,2.13164122]
[1744326893519,6.40661191,1523.0,1522.9,0.81760122]
[1744326896018,1.31395,1523.0,1522.9,0.81760122]
[1744326896219,2.88145,1523.0,1522.9,0.81760122]
[1744326897214,1.31395,1523.0,1522.9,0.81760122]
[1744326897727,1.31395,1523.0,1522.9,2.51820122]
[1744326898818,6.31395,1523.0,1522.9,1.22e-06]
[1744326899009,8.02625,1523.0,1522.9,1.22e-06]
[1744326900018,14.10449951,1523.0,1522.9,1.22e-06]
[1744326904224,9.10449951,1523.0,1522.9,1.22e-06]
[1744326904525,4.0118376,1523.0,1522.9,1.22e-06]
[1744326904722,0.9855876,1523.0,1522.9,9.52184122]
[1744326905233,0.9855876,1523.0,1522.9,11.16424122]
[1744326905921,10.18532383,1523.1,1523.0,1.31395]
[1744326906126,10.18532383,1523.1,1523.0,2.95635]
[1744326906320,10.18532383,1523.1,1523.0,7.95635]
[1744326907828,0.00984122,1523.2,1523.1,1.31387]
[1744326908028,0.00984122,1523.2,1523.1,10.72197]
[1744326908321,1.32362122,1523.2,1523.1,10.72197]
[1744326908528,0.00984122,1523.2,1523.1,10.72197]
[1744326909523,0.00984122,1523.2,1523.1,11.65327]
[1744326910229,1.32362122,1523.2,1523.1,10.3394]
[1744326911027,1.32362122,1523.2,1523.1,11.65327]
[1744326911327,0.00984122,1523.2,1523.1,11.65327]
[1744326911728,1.32362122,1523.2,1523.1,10.3394]
[1744326912126,2.94722122,1523.2,1523.1,10.3394]
[1744326912321,1.31395,1523.0,1522.9,3.20780122]
[1744326912521,1.31395,1523.0,1522.9,1.22e-06]
[1744326912733,6.31395,1523.0,1522.9,1.22e-06]
[1744326913122,7.93755,1523.0,1522.9,1.22e-06]
[1744326914324,2.93755,1523.0,1522.9,1.22e-06]
[1744326915234,2.93755,1523.0,1522.9,1.73860122]
[1744326915532,2.93755,1523.0,1522.9,1.22e-06]
[1744326916131,6.14535,1523.0,1522.9,1.22e-06]
[1744326916629,27.86386511,1523.0,1522.9,1.22e-06]
[1744326916838,24.65606511,1523.0,1522.9,1.22e-06]
[1744326917330,24.65606511,1523.0,1522.9,1.65810122]
[1744326918627,24.65606511,1523.0,1522.9,1.22e-06]
[1744326920133,29.65606511,1523.0,1522.9,1.22e-06]
[1744326920833,7.93755,1523.0,1522.9,1.22e-06]
[1744326921733,2.93755,1523.0,1522.9,1.22e-06]
[1744326925039,1.31395,1523.0,1522.9,1.22e-06]
[1744326925239,14.03606476,1523.1,1523.0,1.31395]
[1744326925539,14.03600476,1523.1,1523.0,5.7841]
[1744326928641,9.97830806,1523.1,1523.0,5.7841]
[1744326928831,9.97830806,1523.1,1523.0,7.09805]
[1744326929331,9.97830806,1523.1,1523.0,5.7841]
[1744326932037,8.66443806,1523.1,1523.0,12.09805]
[1744326933344,6.0989932,1523.1,1523.0,12.09805]
[1744326934046,2.9836032,1523.1,1523.0,12.09805]
[1744326934242,7.68885359,1523.2,1523.1,1.31387]
[1744326934441,4.61263359,1523.2,1523.1,13.53987]
[1744326934642,10.23868316,1523.3,1523.2,1.31378]
[1744326934845,10.23868316,1523.3,1523.2,4.52158]
[1744326935044,10.23868316,1523.3,1523.2,9.52158]
[1744326935253,6.95901316,1523.3,1523.2,15.51358]
[1744326935444,2.02790291,1523.3,1523.2,23.94300363]
[1744326935648,0.00984122,1523.4,1523.3,1.3137]
[1744326935845,0.00984122,1523.4,1523.3,11.9037]
[1744326936046,0.00984122,1523.4,1523.3,25.33312363]
[1744326936949,0.00984122,1523.4,1523.3,25.86788832]
[1744326937751,0.00984122,1523.4,1523.3,27.99918832]
[1744326939051,0.00984122,1523.4,1523.3,14.035]
[1744326940255,0.00984122,1523.4,1523.3,19.035]
[1744326940750,0.00984122,1523.4,1523.3,19.5603206]
[1744326941256,1.22e-06,1523.4,1523.3,28.2256482]
[1744326943251,5.00000122,1523.4,1522.9,6.64880122]
[1744326943452,1.31395,1523.0,1522.9,3.20780122]
[1744326945152,1.31395,1523.0,1522.9,18.64450153]
[1744326945753,6.31395,1523.0,1522.9,15.43670153]
[1744326946856,1.31395,1523.0,1522.9,15.43670153]
[1744326949465,1.31395,1523.0,1522.9,1.22e-06]
[1744326950453,1.31395,1523.0,1522.9,3.20780122]
[1744326955661,1.31395,1523.0,1522.9,1.22e-06]
[1744326956662,6.31395,1523.0,1522.9,1.22e-06]
[1744326957060,8.04855,1523.0,1522.9,1.22e-06]
[1744326958167,3.04855,1523.0,1522.9,1.22e-06]
[1744326961267,8.04855,1523.0,1522.9,1.22e-06]
[1744326964562,3.04855,1523.0,1522.9,1.22e-06]
[1744326965063,3.04855,1523.0,1522.9,3.20780122]
[1744326965468,1.7346,1523.0,1522.9,9.09984122]
[1744326965660,1.7346,1523.0,1522.9,10.79524122]
[1744326965864,3.04855,1523.0,1522.9,10.79524122]
[1744326966668,1.8467,1523.3,1523.0,1.31393]
[1744326966856,2.95088,1523.2,1523.1,3.2078]
[1744326970172,1.31395,1523.0,1522.9,7.78580122]
[1744326970572,1.31395,1523.0,1522.9,14.43260122]
[1744326970869,1.31395,1523.0,1522.9,1.22e-06]
[1744326974082,2.93421,1523.1,1522.9,3.20780122]
[1744326974267,1.31391,1523.1,1523.0,3.01295]
[1744326974575,3.4707,1523.3,1523.0,7.59095]
[1744326974775,1.31378,1523.2,1523.1,1.699]
[1744326974978,1.31378,1523.2,1523.1,4.9068]
[1744326976872,3.02838,1523.2,1523.1,4.9068]
[1744326977171,1.31395,1523.0,1522.9,1.22e-06]
[1744326980077,6.31395,1523.0,1522.9,1.22e-06]
[1744326981079,1.31395,1523.0,1522.9,1.22e-06]
[1744326981577,1.31395,1523.0,1522.9,1.70990122]
[1744326983677,1.31395,1523.0,1522.9,3.02394122]
[1744326984179,1.31395,1523.0,1522.9,1.70990122]
[1744326984783,1.31395,1523.0,1522.9,3.02394122]
[1744326984983,1.7146,1523.1,1522.9,3.02394122]
[1744326985282,1.7146,1523.1,1523.0,6.1716]
[1744326985484,3.02847,1523.1,1523.0,6.1716]
[1744326985677,3.02847,1523.1,1523.0,9.3794]
[1744326985984,1.31387,1523.1,1523.0,10.69335]
[1744326986184,1.31387,1523.1,1523.0,9.3794]
[1744326990686,1.31387,1523.1,1523.0,10.6933]
[1744326990985,1.31387,1523.1,1523.0,9.3794]
[1744326992487,1.31387,1523.1,1523.0,10.69335]
[1744326993076,1.22e-06,1523.4,1523.0,17.66418]
[1744326993281,1.31367122,1523.4,1523.3,4.5215]
[1744326993481,1.22e-06,1523.4,1523.3,9.0985]
[1744326993781,1.31361122,1523.4,1523.3,10.7738]
[1744326994280,1.22e-06,1523.4,1523.3,10.7738]
[1744326994482,1.31361122,1523.4,1523.3,9.4601]
[1744326994890,1.22e-06,1523.4,1523.3,10.7738]
[1744326995484,1.22e-06,1523.4,1523.3,15.7738]
[1744326995686,1.22e-06,1523.4,1523.3,16.1974]
[1744326996779,1.31361122,1523.4,1523.3,10.7738]
[1744326996984,1.69170122,1523.4,1523.3,10.7738]
[1744326997288,1.22e-06,1523.4,1523.3,10.7738]
[1744326999186,1.31361122,1523.4,1523.3,10.7738]
[1744326999379,1.31361122,1523.4,1523.3,9.4601]
[1744326999583,1.31361122,1523.4,1523.3,9.0985]
[1744326999887,1.31361122,1523.4,1523.3,7.7848]
[1744327001086,1.22e-06,1523.4,1523.3,9.0985]
[1744327001287,1.31361122,1523.4,1523.3,9.0985]
[1744327001487,1.22e-06,1523.4,1523.3,9.0985]
[1744327001878,1.31361122,1523.4,1523.3,9.0985]
[1744327002590,1.31361122,1523.4,1523.3,7.7848]
[1744327003287,1.31395,1523.0,1522.9,3.20780122]
[1744327003487,1.31395,1523.0,1522.9,1.22e-06]
[1744327003685,6.31395,1523.0,1522.9,1.22e-06]
[1744327003992,7.89345,1523.0,1522.9,1.22e-06]
[1744327004179,2.89345,1523.0,1522.9,1.22e-06]
[1744327004381,2.89345,1523.0,1522.9,1.31404122]
[1744327004382,1.5795,1523.0,1522.9,1.31404122]
[1744327004690,2.89345,1523.0,1522.9,3.20780122]
[1744327004888,2.89345,1523.0,1522.9,1.22e-06]
[1744327006690,7.89345,1523.0,1522.9,1.22e-06]
[1744327007293,2.89345,1523.0,1522.9,1.22e-06]
[1744327008589,2.89345,1523.0,1522.9,7.74780122]
[1744327011498,2.89345,1523.0,1522.9,9.06184122]
[1744327011699,2.89345,1523.0,1522.9,10.73464122]
[1744327012300,2.89345,1523.0,1522.9,9.42060122]
[1744327012603,2.89345,1523.0,1522.9,10.73464122]
[1744327013099,2.89345,1523.0,1522.9,9.42060122]
[1744327014285,2.89345,1523.0,1522.9,10.73464122]
[1744327014491,1.5795,1523.0,1522.9,10.73464122]
[1744327014685,1.31394,1523.1,1522.9,9.42060122]
[1744327014897,2.88124,1523.1,1523.0,1.7359]
[1744327015699,2.88124,1523.1,1523.0,3.04985]
[1744327018001,2.88124,1523.1,1523.0,1.7359]
[1744327018209,1.31395,1523.0,1522.9,7.74780122]
[1744327018507,2.93115,1523.0,1522.9,7.74780122]
[1744327019100,2.93115,1523.0,1522.9,9.06184122]
[1744327019303,2.93115,1523.0,1522.9,7.74780122]
[1744327021807,2.93115,1523.0,1522.9,9.06184122]
[1744327022007,2.93115,1523.0,1522.9,7.74780122]
[1744327022906,2.93115,1523.0,1522.9,9.06184122]
[1744327024912,2.93115,1523.0,1522.9,7.74780122]
[1744327025112,2.93115,1523.0,1522.9,9.06184122]
[1744327025309,1.6172,1523.0,1522.9,9.06184122]
[1744327025608,2.93115,1523.0,1522.9,9.06184122]
[1744327025803,7.6667091,1523.2,1523.1,1.31387]
[1744327026006,7.6667091,1523.2,1523.1,4.52167]
[1744327026512,8.9804891,1523.2,1523.1,4.52167]
[1744327026703,7.6667091,1523.2,1523.1,4.52167]
[1744327026910,10.6155891,1523.2,1523.1,4.52167]
[1744327027114,9.3018091,1523.2,1523.1,4.52167]
[1744327027414,10.6155891,1523.2,1523.1,4.52167]
[1744327028012,7.6667091,1523.2,1523.1,4.52167]
[1744327028215,7.6667091,1523.2,1523.1,9.52167]
[1744327028415,7.6667091,1523.2,1523.1,11.23637]
[1744327028618,6.0858291,1523.2,1523.1,25.67714235]
[1744327030013,9.87774524,1523.5,1523.4,4.52141]
[1744327030209,8.28687274,1523.5,1523.4,9.06141]
[1744327030725,8.28687274,1523.5,1523.4,9.57875843]
[1744327031020,8.28687274,1523.5,1523.4,24.68102455]
[1744327031220,4.17523274,1523.5,1523.4,30.67302455]
[1744327031419,0.00645147,1523.6,1523.5,1.31352]
[1744327031716,0.00645147,1523.6,1523.5,17.56147125]
[1744327031913,0.00645147,1523.6,1523.5,22.98477125]
[1744327032115,1.47e-06,1523.6,1523.5,22.98477125]
[1744327033012,1.47e-06,1523.6,1523.5,23.64157125]
[1744327033320,12.76171732,1524.1,1524.0,1.31309]
[1744327033521,12.76171732,1524.1,1524.0,9.05989]
[1744327033913,12.76171732,1524.1,1524.0,10.63409]
[1744327034914,14.37671732,1524.1,1524.0,10.63409]
[1744327035522,15.68972732,1524.1,1524.0,7.7468]
[1744327036227,1.31309,1524.0,1523.9,4.54784122]
[1744327036525,3.03979,1524.0,1523.9,4.54784122]
[1744327036714,1.7267,1524.0,1523.9,5.86102122]
[1744327036922,3.03979,1524.0,1523.9,5.86102122]
[1744327037727,3.03979,1524.0,1523.9,4.54784122]
[1744327038225,1.7267,1524.0,1523.9,5.86102122]
[1744327038427,3.03979,1524.0,1523.9,5.86102122]
[1744327038627,3.03979,1524.0,1523.9,4.54784122]
[1744327039127,8.03979,1524.0,1523.9,4.54784122]
[1744327040625,8.03979,1524.0,1523.9,0.00984122]
[1744327041726,1.31326,1523.8,1523.7,4.538]
[1744327042029,1.31326,1523.8,1523.7,7.7458]
[1744327042224,6.31326,1523.8,1523.7,7.7458]
[1744327042527,7.96236,1523.8,1523.7,7.7458]
[1744327043217,2.96236,1523.8,1523.7,7.7458]
[1744327045728,4.03006,1523.8,1523.7,7.7458]
[1744327051933,2.7168,1523.8,1523.7,9.05915]
[1744327052234,1.6491,1523.8,1523.7,9.05915]
[1744327052433,2.96236,1523.8,1523.7,10.76465]
[1744327053037,1.6491,1523.8,1523.7,10.76465]
[1744327053433,2.96236,1523.8,1523.7,10.76465]
[1744327053732,1.6491,1523.8,1523.7,10.76465]
[1744327054032,2.36765121,1523.9,1523.8,1.31326]
[1744327054238,2.36765121,1523.9,1523.8,2.93696]
[1744327055631,2.36762121,1523.9,1523.8,2.93696]
[1744327055839,1.05444121,1523.9,1523.8,2.93696]
[1744327056134,2.36762121,1523.9,1523.8,2.93696]
[1744327056440,1.05444121,1523.9,1523.8,2.93696]
[1744327057043,4.03132121,1523.9,1523.8,2.93696]
[1744327057341,2.71814121,1523.9,1523.8,2.93696]
[1744327057835,4.03132121,1523.9,1523.8,1.6237]
[1744327058036,1.31326,1523.8,1523.7,9.05909]
[1744327058341,2.97696,1523.8,1523.7,7.7458]
[1744327058544,2.6992,1523.8,1523.7,9.05915]
[1744327058739,1.05444121,1523.9,1523.8,1.31326]
[1744327058939,1.05444121,1523.9,1523.8,3.02786]
[1744327059239,4.03132121,1523.9,1523.8,1.7146]
[1744327059741,4.03132121,1523.9,1523.8,3.02786]
[1744327060344,2.71814121,1523.9,1523.8,3.02786]
[1744327061145,4.03132121,1523.9,1523.8,3.02786]
[1744327062743,2.71814121,1523.9,1523.8,3.02786]
[1744327063547,4.03132121,1523.9,1523.8,3.02786]
[1744327064545,2.71814121,1523.9,1523.8,3.02786]
[1744327065349,4.03132121,1523.9,1523.8,3.02786]
[1744327065647,2.71814121,1523.9,1523.8,3.02786]
[1744327066749,4.03132121,1523.9,1523.8,3.02786]
[1744327067143,0.00984121,1523.9,1523.8,3.02786]
[1744327069249,1.32302121,1523.9,1523.8,3.02786]
[1744327069651,0.00984121,1523.9,1523.8,3.02786]
[1744327076459,0.00984121,1523.9,1523.8,6.23566]
[1744327077758,0.00984121,1523.9,1523.8,4.52106]
[1744327077957,2.79854121,1523.9,1523.8,4.52106]
[1744327079158,0.00984121,1523.9,1523.8,6.22256]
[1744327079952,2.93242121,1523.9,1523.8,6.22256]
[1744327080461,1.61924121,1523.9,1523.8,6.22256]
[1744327081160,2.93242121,1523.9,1523.8,4.52106]
[1744327081457,1.31335,1523.7,1523.6,13.4828884]
[1744327081665,1.31335,1523.7,1523.6,18.0118884]
[1744327081853,6.31335,1523.7,1523.6,7.74664122]
[1744327082048,8.93095,1523.7,1523.6,7.74664122]
[1744327082755,3.93095,1523.7,1523.6,7.74664122]
[1744327084467,2.6176,1523.7,1523.6,7.74664122]
[1744327084763,2.6176,1523.7,1523.6,4.53108122]
[1744327084960,3.93095,1523.7,1523.6,4.53108122]
[1744327085264,3.93095,1523.7,1523.6,3.21764122]
[1744327086066,3.93095,1523.7,1523.6,4.53108122]
[1744327086362,3.93095,1523.7,1523.6,3.21764122]
[1744327087471,8.93095,1523.7,1523.6,0.00984122]
[1744327090761,15.00322232,1523.7,1523.6,0.00984122]
[1744327092267,10.00322232,1523.7,1523.6,0.00984122]
[1744327098569,10.00322232,1523.7,1523.6,1.32328122]
[1744327099775,3.93095,1523.7,1523.6,1.32328122]
[1744327101876,3.93095,1523.7,1523.6,0.00984122]
[1744327102279,3.93095,1523.7,1523.6,1.32328122]
[1744327102879,6.15642464,1523.8,1523.7,1.31335]
[1744327103082,9.20038464,1523.8,1523.7,7.7038]
[1744327103979,4.11326,1523.8,1523.7,7.7038]
[1744327104387,4.11326,1523.8,1523.7,4.496]
[1744327110996,3.04396,1523.8,1523.7,4.496]
[1744327111202,4.09816,1523.8,1523.7,4.496]
[1744327112900,4.09816,1523.8,1523.7,5.80935]
[1744327113099,4.09816,1523.8,1523.7,7.53265]
[1744327113297,2.7849,1523.8,1523.7,7.53265]
[1744327113597,4.09816,1523.8,1523.7,7.53265]
[1744327114902,10.9927,1523.8,1523.5,0.6568]
[1744327115097,1.3137,1523.3,1523.2,13.47304718]
[1744327115407,1.3137,1523.3,1523.2,10.26524718]
[1744327115799,2.9016,1523.3,1523.2,10.26524718]